bitfinex-derivatives/quotes_BNBF0:USTF0_20250810
["timestamp","ask_amount","ask_price","bid_price","bid_amount"]
[1754858214570,0.80150663,804.42,803.18,2.8023031]
[1754858214871,0.80150663,804.41,803.18,2.8023031]
[1754858215174,0.80150663,804.4,803.18,2.8023031]
[1754858215369,0.80150663,804.39,803.18,2.8023031]
[1754858215574,0.80150663,804.38,803.18,2.8023031]
[1754858215771,0.80150663,804.37,803.16,2.8023031]
[1754858215970,0.80150663,804.36,803.16,2.8023031]
[1754858216174,0.80150663,804.35,803.16,2.8023031]
[1754858216371,0.83860365,804.79,802.9,3.9232243]
[1754858216372,0.21664898,804.07,802.9,3.9232243]
[1754858216577,0.21664898,804.07,802.4,3.01895208]
[1754858217974,0.21664898,804.07,802.41,2.8023031]
[1754858221576,0.21664898,804.07,802.4,3.01895208]
[1754858222875,0.21664898,804.07,802.76,3.9232243]
[1754858223078,0.21664898,804.07,802.98,2.8023031]
[1754858226778,0.21664898,804.07,802.99,2.8023031]
[1754858229387,0.21664898,804.07,802.98,2.8023031]
[1754858229986,0.21664898,804.07,802.99,2.8023031]
[1754858231384,0.21664898,804.07,802.91,2.8023031]
[1754858231988,0.21664898,804.07,802.92,2.8023031]
[1754858232988,0.21664898,804.07,803.22,2.8023031]
[1754858235691,0.21664898,804.07,802.57,2.8023031]
[1754858238295,0.21664898,804.07,802.59,2.8023031]
[1754858239795,0.21664898,804.07,802.58,2.8023031]
[1754858241596,0.21664898,804.07,802.68,2.8023031]
[1754858242495,0.21664898,804.07,802.67,2.8023031]
[1754858243094,0.21664898,804.07,802.64,2.8023031]
[1754858243493,0.21664898,804.07,802.63,2.8023031]
[1754858245098,0.21664898,804.07,803.04,2.8023031]
[1754858245599,0.21664898,804.07,803.03,2.8023031]
[1754858248799,0.21664898,804.07,803.01,2.8023031]
[1754858249700,0.21664898,804.07,803.0,2.8023031]
[1754858251906,0.21664898,804.07,802.99,2.8023031]
[1754858252406,0.21664898,804.07,803.03,2.8023031]
[1754858252907,0.21664898,804.07,802.62,3.9232243]
[1754858252908,0.21664898,804.07,803.13,2.8023031]
[1754858253407,0.21664898,804.07,803.18,2.8023031]
[1754858256605,0.21664898,804.07,803.09,2.8023031]
[1754858257609,0.21664898,804.07,803.08,2.8023031]
[1754858258108,0.21664898,804.07,803.16,2.8023031]
[1754858258604,0.21664898,804.07,803.17,2.8023031]
[1754858259805,0.21664898,804.07,803.18,2.8023031]
[1754858260709,0.21664898,804.07,803.2,2.8023031]
[1754858261409,0.21664898,804.07,803.21,2.8023031]
[1754858262812,0.21664898,804.07,803.19,2.8023031]
[1754858264306,0.21664898,804.07,803.2,2.8023031]
[1754858265512,0.21664898,804.07,803.21,2.8023031]
[1754858266011,0.21664898,804.07,803.2,2.8023031]
[1754858266410,0.21664898,804.07,803.39,2.8023031]
[1754858267613,0.21664898,804.07,803.4,2.8023031]
[1754858268009,0.21664898,804.07,803.43,2.8023031]
[1754858268616,0.21664898,804.07,803.15,3.9232243]
[1754858268617,0.21664898,804.07,803.3,2.8023031]
[1754858268814,0.83710055,805.41,803.3,2.8023031]
[1754858269014,0.21650341,804.18,802.99,2.8023031]
[1754858269216,0.83710055,805.42,802.99,2.8023031]
[1754858269417,1.6373339,805.41,802.99,2.8023031]
[1754858269610,0.21652159,804.14,802.98,2.8023031]
[1754858269812,0.83710055,805.41,802.98,2.8023031]
[1754858270010,0.21652227,804.14,803.0,2.8023031]
[1754858270214,0.83710055,805.41,803.0,2.8023031]
[1754858270516,0.21652092,804.14,803.91,1.6731262]
[1754858270814,0.83710055,805.41,803.91,1.6731262]
[1754858271112,0.21645964,804.14,803.91,1.6731262]
[1754858271411,0.83710055,805.26,803.77,1.6731262]
[1754858271614,0.21645964,804.14,803.77,1.6731262]
[1754858271817,0.83710055,805.26,803.77,1.6731262]
[1754858272115,0.21647917,804.14,803.77,1.6731262]
[1754858272416,0.83710055,805.26,803.75,1.6731262]
[1754858272616,0.21647917,804.14,803.75,1.6731262]
[1754858272916,0.83710055,805.26,803.75,1.6731262]
[1754858273117,0.79871847,805.25,803.75,1.6731262]
[1754858273414,0.79871847,805.24,803.76,1.6731262]
[1754858273613,0.79871847,805.23,803.74,1.6731262]
[1754858273917,0.79871847,805.22,803.75,1.6731262]
[1754858274117,0.21649061,804.86,803.81,1.6731262]
[1754858274317,0.79871847,804.85,803.81,1.6731262]
[1754858274614,0.79871847,804.84,803.8,1.6731262]
[1754858274816,0.79871847,804.83,803.8,1.6731262]
[1754858275016,0.79871847,804.82,803.8,1.6731262]
[1754858275214,0.79871847,804.81,803.78,1.6731262]
[1754858275419,0.79871847,804.8,803.77,1.6731262]
[1754858275619,0.79871847,804.79,803.77,1.6731262]
[1754858275818,0.79871847,804.78,803.77,1.6731262]
[1754858276019,0.21649061,804.86,803.77,1.6731262]
[1754858276224,0.79841361,804.85,803.83,1.6731262]
[1754858276420,0.79841361,804.84,803.83,1.6731262]
[1754858276723,0.79841361,804.83,803.82,1.6731262]
[1754858276923,0.79841361,804.82,803.82,1.6731262]
[1754858277121,0.79841361,804.81,803.82,1.6731262]
[1754858277320,0.79841361,804.8,803.83,1.6731262]
[1754858277624,0.79841361,804.79,803.83,1.6731262]
[1754858277825,0.79841361,804.78,803.83,1.6731262]
[1754858278124,0.79841361,804.77,803.78,1.6731262]
[1754858278325,0.79841361,804.76,803.84,1.6731262]
[1754858278626,0.21649061,804.86,803.84,1.6731262]
[1754858278827,0.79841462,804.85,803.84,1.6731262]
[1754858279126,0.79841462,804.84,803.84,1.6731262]
[1754858279325,0.21649061,804.86,803.85,1.6731262]
[1754858279326,0.79841462,804.83,803.85,1.6731262]
[1754858279625,0.79841462,804.82,803.85,1.6731262]
[1754858279825,0.79841462,804.81,803.85,1.6731262]
[1754858280125,0.79841462,804.8,803.85,1.6731262]
[1754858280326,0.79841462,804.79,803.85,1.6731262]
[1754858280522,0.79841462,804.78,803.86,1.6731262]
[1754858280726,0.79841462,804.77,803.86,1.6731262]
[1754858280925,0.79841462,804.76,803.86,1.6731262]
[1754858281222,0.21649061,804.86,803.9,1.6731262]
[1754858281526,0.79846709,804.85,803.9,1.6731262]
[1754858281726,0.79846709,804.84,803.91,1.6731262]
[1754858281923,0.79846709,804.83,803.91,1.6731262]
[1754858282121,0.79846709,804.82,803.91,1.6731262]
[1754858282322,0.79846709,804.81,803.9,1.6731262]
[1754858282527,0.79846709,804.8,803.91,1.6731262]
[1754858282727,0.21649061,804.86,803.91,1.6731262]
[1754858283023,0.79859305,804.85,803.91,1.6731262]
[1754858283223,0.79859305,804.84,803.91,1.6731262]
[1754858283527,0.79859305,804.83,803.91,1.6731262]
[1754858283727,0.79859305,804.82,803.91,1.6731262]
[1754858284024,0.79859305,804.81,803.92,1.6731262]
[1754858284227,0.79859305,804.8,803.92,1.6731262]
[1754858284430,0.21649061,804.86,803.93,1.6731262]
[1754858284731,0.79865598,804.85,803.93,1.6731262]
[1754858285025,0.79865598,804.84,803.93,1.6731262]
[1754858285326,0.79865598,804.83,803.93,1.6731262]
[1754858285528,0.79865598,804.82,803.91,1.6731262]
[1754858285728,0.21649061,804.86,803.95,1.6731262]
[1754858285928,0.79873678,804.85,803.95,1.6731262]
[1754858286126,0.21649061,804.86,803.95,1.6731262]
[1754858286325,0.79869731,804.85,803.95,1.6731262]
[1754858286526,0.21649061,804.86,803.95,1.6731262]
[1754858286725,0.79873671,804.85,803.95,1.6731262]
[1754858286928,0.21649061,804.86,803.95,1.6731262]
[1754858287224,0.79873667,804.85,803.95,1.6731262]
[1754858287423,0.21649061,804.86,803.95,1.6731262]
[1754858287624,0.79874669,804.85,803.95,1.6731262]
[1754858287827,0.21649061,804.86,804.01,1.6731262]
[1754858288122,0.79874668,804.85,804.01,1.6731262]
[1754858288322,0.21649061,804.86,804.01,1.6731262]
[1754858288525,0.79871646,804.85,804.02,1.6731262]
[1754858288730,0.79871646,804.84,804.01,1.6731262]
[1754858288931,0.21649061,804.86,804.01,1.6731262]
[1754858289129,0.79875836,804.85,804.01,1.6731262]
[1754858289327,0.79875836,804.84,804.01,1.6731262]
[1754858289531,0.21649061,804.86,804.01,1.6731262]
[1754858289727,0.79879328,804.85,804.01,1.6731262]
[1754858289931,0.79879328,804.84,804.01,1.6731262]
[1754858290129,0.21649061,804.86,804.0,1.6731262]
[1754858290427,0.79877215,804.85,804.01,1.6731262]
[1754858290632,0.79877215,804.84,803.98,1.6731262]
[1754858290832,0.79877215,804.83,803.92,1.6731262]
[1754858291033,0.79877215,804.82,803.93,1.6731262]
[1754858291227,0.79877215,804.81,803.87,1.6731262]
[1754858291432,0.21649061,804.86,802.4,0.21664898]
[1754858291433,0.79877215,804.8,803.82,1.6731262]
[1754858291628,0.79877215,804.79,803.82,1.6731262]
[1754858291830,0.79877215,804.78,803.82,1.6731262]
[1754858292030,0.79877215,804.77,803.82,1.6731262]
[1754858292229,0.79877215,804.76,803.82,1.6731262]
[1754858292428,0.79877215,804.75,803.83,1.6731262]
[1754858292629,0.79877215,804.74,803.83,1.6731262]
[1754858292933,0.79877215,804.73,803.84,1.6731262]
[1754858293134,0.79877215,804.72,803.84,1.6731262]
[1754858293334,0.79877215,804.71,803.84,1.6731262]
[1754858293530,0.79877215,804.7,803.85,1.6731262]
[1754858293734,0.79877215,804.69,803.84,1.6731262]
[1754858293934,0.79877215,804.68,803.84,1.6731262]
[1754858294234,0.79877215,804.67,803.83,1.6731262]
[1754858294530,0.79877215,804.66,803.83,1.6731262]
[1754858294730,0.79877215,804.65,803.83,1.6731262]
[1754858294934,0.79877215,804.64,803.83,1.6731262]
[1754858295135,0.21649061,804.86,803.85,1.6731262]
[1754858295333,0.79906763,804.85,803.85,1.6731262]
[1754858295536,0.79906763,804.84,803.86,1.6731262]
[1754858295736,0.79906763,804.83,803.86,1.6731262]
[1754858295937,0.79906763,804.82,803.86,1.6731262]
[1754858296138,0.79906763,804.81,803.86,1.6731262]
[1754858296334,0.79906763,804.8,803.86,1.6731262]
[1754858296539,0.79906763,804.79,803.86,1.6731262]
[1754858296733,0.79906763,804.78,803.86,1.6731262]
[1754858297033,0.79906763,804.77,803.86,1.6731262]
[1754858297232,0.21649061,804.86,803.86,1.6731262]
[1754858297233,0.79906763,804.76,803.86,1.6731262]
[1754858297437,0.79906763,804.75,803.86,1.6731262]
[1754858297637,0.79906763,804.74,803.86,1.6731262]
[1754858297934,0.79906763,804.73,803.86,1.6731262]
[1754858298234,0.79906763,804.72,803.88,1.6731262]
[1754858298433,0.79906763,804.71,803.88,1.6731262]
[1754858298638,0.79906763,804.7,803.88,1.6731262]
[1754858298836,0.79906763,804.69,803.88,1.6731262]
[1754858299134,0.79906763,804.68,803.88,1.6731262]
[1754858299438,0.79906763,804.67,803.89,1.6731262]
[1754858299635,0.79906763,804.66,803.88,1.6731262]
[1754858299934,0.79906763,804.65,803.88,1.6731262]
[1754858300134,0.21649061,804.86,803.84,1.6731262]
[1754858300338,0.79927487,804.85,803.84,1.6731262]
[1754858300538,0.79927487,804.84,803.84,1.6731262]
[1754858300838,0.79927487,804.83,803.84,1.6731262]
[1754858301033,0.79927487,804.82,803.84,1.6731262]
[1754858301237,0.79927487,804.81,803.87,1.6731262]
[1754858301438,0.79927487,804.8,803.87,1.6731262]
[1754858301637,0.79927487,804.79,803.87,1.6731262]
[1754858301934,0.79927487,804.78,803.83,1.6731262]
[1754858302240,0.79927487,804.77,803.83,1.6731262]
[1754858302438,0.79927487,804.76,803.83,1.6731262]
[1754858302739,0.79927487,804.75,803.83,1.6731262]
[1754858302933,0.79927487,804.74,803.78,1.6731262]
[1754858303139,0.79927487,804.73,803.78,1.6731262]
[1754858303336,0.79927487,804.72,803.78,1.6731262]
[1754858303537,0.79927487,804.71,803.78,1.6731262]
[1754858303837,0.79927487,804.7,803.78,1.6731262]
[1754858304037,0.79927487,804.69,803.78,1.6731262]
[1754858304241,0.79927487,804.68,803.78,1.6731262]
[1754858304440,0.79927487,804.67,803.78,1.6731262]
[1754858304639,0.79927487,804.66,803.78,1.6731262]
[1754858304837,0.79927487,804.65,803.76,1.6731262]
[1754858305136,0.79927487,804.64,803.76,1.6731262]
[1754858305336,0.79927487,804.63,803.76,1.6731262]
[1754858305541,0.21649061,804.86,803.76,1.6731262]
[1754858305734,0.79988354,804.85,803.76,1.6731262]
[1754858305939,0.79988354,804.84,803.76,1.6731262]
[1754858306138,0.79988354,804.83,803.76,1.6731262]
[1754858306338,0.79988354,804.82,803.76,1.6731262]
[1754858306537,0.79988354,804.81,803.77,1.6731262]
[1754858306840,0.79988354,804.8,803.77,1.6731262]
[1754858307140,0.79988354,804.79,803.77,1.6731262]
[1754858307340,0.79988354,804.78,803.77,1.6731262]
[1754858307541,0.79988354,804.77,803.77,1.6731262]
[1754858307741,0.79988354,804.76,803.77,1.6731262]
[1754858307942,0.79988354,804.75,803.77,1.6731262]
[1754858308139,0.79988354,804.74,803.77,1.6731262]
[1754858308444,0.79988354,804.73,803.77,1.6731262]
[1754858308742,0.79988354,804.72,803.77,1.6731262]
[1754858308942,0.79988354,804.71,803.77,1.6731262]
[1754858309243,0.79988354,804.7,803.77,1.6731262]
[1754858309441,0.79988354,804.69,803.78,1.6731262]
[1754858309645,0.79988354,804.68,803.78,1.6731262]
[1754858309839,0.79988354,804.67,803.78,1.6731262]
[1754858310039,0.79988354,804.67,803.06,2.8023031]
[1754858310040,0.79988354,804.66,803.79,1.6731262]
[1754858310341,0.79988354,804.65,803.8,1.6731262]
[1754858310641,0.79988354,804.64,803.8,1.6731262]
[1754858310846,0.79988354,804.63,803.8,1.6731262]
[1754858311042,0.79988354,804.62,803.78,1.6731262]
[1754858311242,0.79988354,804.61,803.77,1.6731262]
[1754858311542,0.21649061,804.86,803.77,1.6731262]
[1754858311745,0.80017073,804.85,803.77,1.6731262]
[1754858311942,0.80017073,804.84,803.79,1.6731262]
[1754858312141,0.80017073,804.83,803.79,1.6731262]
[1754858312342,0.80017073,804.82,803.78,1.6731262]
[1754858312647,0.80017073,804.81,803.78,1.6731262]
[1754858312846,0.80017073,804.8,803.81,1.6731262]
[1754858313047,0.80017073,804.79,803.81,1.6731262]
[1754858313347,0.80017073,804.78,803.81,1.6731262]
[1754858313547,0.80017073,804.77,803.82,1.6731262]
[1754858313747,0.80017073,804.76,803.82,1.6731262]
[1754858313950,0.80017073,804.75,803.82,1.6731262]
[1754858314246,0.80017073,804.74,803.8,1.6731262]
[1754858314448,0.80017073,804.73,803.8,1.6731262]
[1754858314646,0.80017073,804.72,803.82,1.6731262]
[1754858314848,0.80017073,804.71,803.82,1.6731262]
[1754858315145,0.80017073,804.7,803.82,1.6731262]
[1754858315345,0.80017073,804.69,803.82,1.6731262]
[1754858315545,0.80017073,804.68,803.82,1.6731262]
[1754858315845,0.80017073,804.67,803.82,1.6731262]
[1754858316046,0.80017073,804.66,803.82,1.6731262]
[1754858316353,0.80017073,804.65,803.82,1.6731262]
[1754858316547,0.80017073,804.64,803.82,1.6731262]
[1754858316748,0.21649061,804.86,803.82,1.6731262]
[1754858316749,0.80017073,804.63,803.82,1.6731262]
[1754858317047,0.80017073,804.62,803.82,1.6731262]
[1754858317251,0.80017073,804.61,803.82,1.6731262]
[1754858317452,0.80017073,804.6,803.82,1.6731262]
[1754858317751,0.80017073,804.59,803.82,1.6731262]
[1754858317950,0.21649061,804.86,803.82,1.6731262]
[1754858318154,0.80036939,804.85,803.83,1.6731262]
[1754858318349,0.80036939,804.84,803.83,1.6731262]
[1754858318551,0.80036939,804.83,803.83,1.6731262]
[1754858318752,0.80036939,804.82,803.83,1.6731262]
[1754858318951,0.80036939,804.81,803.83,1.6731262]
[1754858319253,0.80036939,804.8,803.83,1.6731262]
[1754858319455,0.80036939,804.79,803.83,1.6731262]
[1754858319650,0.80036939,804.78,803.83,1.6731262]
[1754858319854,0.80036939,804.77,803.82,1.6731262]
[1754858320052,0.80036939,804.76,803.82,1.6731262]
[1754858320251,0.80036939,804.75,803.82,1.6731262]
[1754858320555,0.80036939,804.74,803.82,1.6731262]
[1754858320852,0.80036939,804.73,803.85,1.6731262]
[1754858321054,0.80036939,804.72,803.85,1.6731262]
[1754858321255,0.80036939,804.71,803.75,1.6731262]
[1754858321456,0.80036939,804.7,803.74,1.6731262]
[1754858321656,0.80036939,804.69,803.74,1.6731262]
[1754858321856,0.80036939,804.68,803.74,1.6731262]
[1754858322055,0.21649061,804.86,803.8,1.6731262]
[1754858322056,0.80036939,804.67,803.8,1.6731262]
[1754858322252,0.80036939,804.66,803.8,1.6731262]
[1754858322456,0.80036939,804.65,803.79,1.6731262]
[1754858322656,0.80036939,804.64,803.79,1.6731262]
[1754858322857,0.80036939,804.63,803.79,1.6731262]
[1754858323058,0.80036939,804.62,803.75,1.6731262]
[1754858323257,0.80036939,804.61,803.75,1.6731262]
[1754858323552,0.80036939,804.6,803.75,1.6731262]
[1754858323753,0.80036939,804.59,803.76,1.6731262]
[1754858323952,0.80036939,804.58,803.76,1.6731262]
[1754858324157,0.80036939,804.57,803.75,1.6731262]
[1754858324354,0.80036939,804.56,803.75,1.6731262]
[1754858324554,0.80036939,804.55,803.68,1.6731262]
[1754858324759,0.80036939,804.54,803.66,1.6731262]
[1754858325055,0.80036939,804.53,803.66,1.6731262]
[1754858325253,0.80036939,804.52,803.66,1.6731262]
[1754858325455,0.80036939,804.51,803.66,1.6731262]
[1754858325658,0.80036939,804.5,803.66,1.6731262]
[1754858325859,0.80036939,804.49,803.66,1.6731262]
[1754858326158,0.80036939,804.48,803.65,1.6731262]
[1754858326355,0.80036939,804.47,803.65,1.6731262]
[1754858326656,0.83710055,804.76,802.96,2.8023031]
[1754858326657,0.80036939,804.46,803.66,1.6731262]
[1754858326860,0.80036939,804.45,803.66,1.6731262]
[1754858327061,0.83710055,804.82,803.55,1.6731262]
[1754858327260,0.80025375,804.81,803.55,1.6731262]
[1754858327457,0.80025375,804.8,803.55,1.6731262]
[1754858327760,0.80025375,804.79,803.55,1.6731262]
[1754858327961,0.80025375,804.78,803.55,1.6731262]
[1754858328161,0.80025375,804.77,803.54,1.6731262]
[1754858328358,0.80025375,804.76,803.54,1.6731262]
[1754858328562,0.80025375,804.75,803.54,1.6731262]
[1754858328760,0.80025375,804.74,803.54,1.6731262]
[1754858328961,0.83710055,804.82,803.54,1.6731262]
[1754858328962,0.80025375,804.73,803.54,1.6731262]
[1754858329162,0.80025375,804.72,803.54,1.6731262]
[1754858329362,0.80025375,804.71,803.54,1.6731262]
[1754858329662,0.80025375,804.7,803.54,1.6731262]
[1754858329862,0.80025375,804.69,803.54,1.6731262]
[1754858330063,0.80025375,804.68,803.54,1.6731262]
[1754858330260,0.80025375,804.67,803.54,1.6731262]
[1754858330564,0.80025375,804.66,802.72,2.8023031]
[1754858330763,0.80025375,804.65,802.72,2.8023031]
[1754858330964,0.80025375,804.64,802.72,2.8023031]
[1754858331162,0.80025375,804.63,802.72,2.8023031]
[1754858331361,0.80025375,804.62,802.72,2.8023031]
[1754858331565,0.80025375,804.61,802.86,2.8023031]
[1754858331762,0.80025375,804.6,802.86,2.8023031]
[1754858331966,0.80025375,804.59,802.87,2.8023031]
[1754858332162,0.21649061,804.86,802.87,2.8023031]
[1754858332364,0.80086364,804.85,802.87,2.8023031]
[1754858332564,0.80086364,804.84,802.89,2.8023031]
[1754858332766,0.80086364,804.83,802.89,2.8023031]
[1754858333066,0.80086364,804.82,802.9,2.8023031]
[1754858333266,0.80086364,804.81,802.9,2.8023031]
[1754858333466,0.80086364,804.8,802.9,2.8023031]
[1754858333667,0.80086364,804.79,802.91,2.8023031]
[1754858333962,0.80086364,804.78,802.91,2.8023031]
[1754858334168,0.80086364,804.77,802.91,2.8023031]
[1754858334365,0.80086364,804.76,802.91,2.8023031]
[1754858334565,0.80086364,804.75,802.91,2.8023031]
[1754858334769,0.80086364,804.74,802.98,2.8023031]
[1754858334969,0.80086364,804.73,802.98,2.8023031]
[1754858335169,0.21649061,804.86,802.98,2.8023031]
[1754858335170,0.80086364,804.72,802.98,2.8023031]
[1754858335468,0.80086364,804.71,802.98,2.8023031]
[1754858335669,0.80086364,804.7,802.98,2.8023031]
[1754858335867,0.80086364,804.69,802.98,2.8023031]
[1754858336070,0.80086364,804.68,802.98,2.8023031]
[1754858336368,0.80086364,804.67,802.98,2.8023031]
[1754858336571,0.80086364,804.66,802.98,2.8023031]
[1754858336867,0.80086364,804.65,802.99,2.8023031]
[1754858337067,0.80086364,804.64,802.99,2.8023031]
[1754858337274,0.80086364,804.63,803.32,2.8023031]
[1754858337474,0.80086364,804.62,803.32,2.8023031]
[1754858337678,0.80086364,804.61,803.32,2.8023031]
[1754858337974,0.80086364,804.6,803.32,2.8023031]
[1754858338274,0.80086364,804.59,803.38,2.8023031]
[1754858338474,0.83710055,804.84,803.38,2.8023031]
[1754858338674,1.63841059,804.85,803.38,2.8023031]
[1754858338976,1.63841059,804.85,803.35,2.8023031]
[1754858339776,0.80131004,804.84,803.35,2.8023031]
[1754858339972,0.80131004,804.83,803.28,2.8023031]
[1754858340178,0.80131004,804.82,803.28,2.8023031]
[1754858340377,0.80131004,804.81,803.28,2.8023031]
[1754858340578,0.80131004,804.8,803.28,2.8023031]
[1754858340772,0.80131004,804.79,803.28,2.8023031]
[1754858341077,0.80131004,804.78,803.27,2.8023031]
[1754858341274,0.80131004,804.77,803.27,2.8023031]
[1754858341574,0.80131004,804.76,803.3,2.8023031]
[1754858341774,0.80131004,804.75,803.3,2.8023031]
[1754858341978,0.80131004,804.74,803.3,2.8023031]
[1754858342178,0.80131004,804.73,803.3,2.8023031]
[1754858342378,0.80131004,804.72,803.3,2.8023031]
[1754858342678,0.80131004,804.71,803.35,2.8023031]
[1754858342878,0.80131004,804.7,803.35,2.8023031]
[1754858343078,0.80131004,804.69,803.35,2.8023031]
[1754858343274,0.80131004,804.68,803.35,2.8023031]
[1754858343478,0.80131004,804.67,803.35,2.8023031]
[1754858343674,0.80131004,804.66,803.35,2.8023031]
[1754858343875,0.80131004,804.65,803.35,2.8023031]
[1754858344078,0.80131004,804.64,803.35,2.8023031]
[1754858344280,0.80131004,804.63,803.35,2.8023031]
[1754858344478,0.80131004,804.62,803.35,2.8023031]
[1754858344682,0.80131004,804.61,803.35,2.8023031]
[1754858344982,0.21649061,804.86,803.35,2.8023031]
[1754858345182,0.80157373,804.85,803.35,2.8023031]
[1754858345382,0.80157373,804.84,803.35,2.8023031]
[1754858345683,0.80157373,804.83,803.36,2.8023031]
[1754858345979,0.80157373,804.82,803.36,2.8023031]
[1754858346182,0.80157373,804.81,803.36,2.8023031]
[1754858346379,0.80157373,804.8,803.36,2.8023031]
[1754858346679,0.80157373,804.79,803.37,2.8023031]
[1754858346883,0.80157373,804.78,803.37,2.8023031]
[1754858347080,0.80157373,804.77,803.37,2.8023031]
[1754858347279,0.80157373,804.76,803.37,2.8023031]
[1754858347483,0.80157373,804.75,803.37,2.8023031]
[1754858347780,0.80157373,804.74,803.38,2.8023031]
[1754858347984,0.80157373,804.73,803.38,2.8023031]
[1754858348178,0.80157373,804.72,803.4,2.8023031]
[1754858348382,0.80157373,804.71,803.4,2.8023031]
[1754858348684,0.80157373,804.7,803.42,2.8023031]
[1754858348884,0.80157373,804.69,803.42,2.8023031]
[1754858349083,0.80157373,804.68,803.42,2.8023031]
[1754858349378,0.80157373,804.67,803.43,2.8023031]
[1754858349582,0.80157373,804.66,803.43,2.8023031]
[1754858349880,0.80157373,804.65,803.51,2.8023031]
[1754858350184,0.80157373,804.64,803.51,2.8023031]
[1754858350383,0.80157373,804.63,803.53,2.8023031]
[1754858350581,0.80157373,804.62,803.53,2.8023031]
[1754858350779,0.80157373,804.61,803.54,2.8023031]
[1754858350982,0.80157373,804.6,803.54,2.8023031]
[1754858351181,0.80157373,804.59,803.54,2.8023031]
[1754858351381,0.80157373,804.58,803.55,2.8023031]
[1754858351585,0.80157373,804.57,803.55,2.8023031]
[1754858351782,0.80157373,804.56,803.55,2.8023031]
[1754858351986,0.80157373,804.55,803.55,2.8023031]
[1754858352286,0.80157373,804.54,803.55,2.8023031]
[1754858352487,0.80157373,804.53,803.55,2.8023031]
[1754858352687,0.80157373,804.52,803.55,2.8023031]
[1754858352984,0.21649061,804.86,803.55,2.8023031]
[1754858352985,0.83710055,804.79,803.55,2.8023031]
[1754858353482,0.83710055,804.79,803.38,2.8023031]
[1754858353887,0.83710055,804.79,803.36,2.8023031]
[1754858354287,1.63995291,804.78,803.36,2.8023031]
[1754858354482,0.21649061,804.86,803.35,2.8023031]
[1754858354483,0.80285236,804.77,803.35,2.8023031]
[1754858354683,0.80285236,804.76,803.35,2.8023031]
[1754858354883,0.83710055,804.79,803.35,2.8023031]
[1754858354884,0.80285236,804.75,803.35,2.8023031]
[1754858355089,0.80285236,804.74,803.35,2.8023031]
[1754858355285,0.80285236,804.73,803.35,2.8023031]
[1754858355486,0.80285236,804.72,803.35,2.8023031]
[1754858355785,0.80285236,804.71,803.35,2.8023031]
[1754858355986,0.80285236,804.7,803.35,2.8023031]
[1754858356186,0.80285236,804.69,803.35,2.8023031]
[1754858356386,0.80285236,804.68,803.35,2.8023031]
[1754858356588,0.80285236,804.67,803.35,2.8023031]
[1754858356788,0.80285236,804.66,803.35,2.8023031]
[1754858356989,0.80285236,804.65,803.16,2.8023031]
[1754858357290,0.80285236,804.64,803.16,2.8023031]
[1754858357485,0.80285236,804.63,803.16,2.8023031]
[1754858357685,0.80285236,804.62,803.16,2.8023031]
[1754858357889,0.80285236,804.61,803.16,2.8023031]
[1754858358087,0.80285236,804.6,803.17,2.8023031]
[1754858358385,0.80285236,804.59,803.17,2.8023031]
[1754858358585,0.80285236,804.58,803.17,2.8023031]
[1754858358788,0.80285236,804.57,803.17,2.8023031]
[1754858358987,0.80285236,804.56,803.17,2.8023031]
[1754858359186,0.80285236,804.55,803.17,2.8023031]
[1754858359384,0.80285236,804.54,803.17,2.8023031]
[1754858359589,0.80285236,804.53,803.17,2.8023031]
[1754858359887,0.80285236,804.52,803.17,2.8023031]
[1754858360086,0.80285236,804.51,803.17,2.8023031]
[1754858360286,0.80285236,804.5,803.17,2.8023031]
[1754858360483,0.83710055,804.83,803.17,2.8023031]
[1754858361487,0.83710055,804.74,803.17,2.8023031]
[1754858361690,0.83710055,804.74,803.09,2.8023031]
[1754858361987,1.63996031,804.73,803.09,2.8023031]
[1754858362186,0.80285976,804.72,803.09,2.8023031]
[1754858362492,0.80285976,804.71,803.07,2.8023031]
[1754858362685,0.80285976,804.7,803.07,2.8023031]
[1754858362888,0.80285976,804.69,803.15,2.8023031]
[1754858363090,0.80285976,804.68,803.15,2.8023031]
[1754858363289,0.80285976,804.67,803.05,2.8023031]
[1754858363590,0.80285976,804.66,803.05,2.8023031]
[1754858363791,0.80285976,804.65,803.05,2.8023031]
[1754858363990,0.80285976,804.64,803.05,2.8023031]
[1754858364190,0.80285976,804.63,803.05,2.8023031]
[1754858364492,0.83710055,804.63,802.82,2.8023031]
[1754858365086,0.83710055,804.63,802.77,2.8023031]
[1754858365290,0.80285976,804.62,802.77,2.8023031]
[1754858365486,0.80285976,804.61,802.75,2.8023031]
[1754858365691,0.80285976,804.6,802.75,2.8023031]
[1754858365990,0.80285976,804.59,802.75,2.8023031]
[1754858366188,0.80285976,804.58,802.75,2.8023031]
[1754858366388,0.80285976,804.57,802.74,2.8023031]
[1754858366591,0.80285976,804.56,802.74,2.8023031]
[1754858366889,0.80285976,804.55,802.82,2.8023031]
[1754858367091,0.80285976,804.54,802.82,2.8023031]
[1754858367286,0.80285976,804.53,802.82,2.8023031]
[1754858367488,0.80285976,804.52,802.81,2.8023031]
[1754858367686,0.80285976,804.51,802.81,2.8023031]
[1754858367890,0.80285976,804.5,802.81,2.8023031]
[1754858368088,0.80285976,804.49,802.81,2.8023031]
[1754858368292,0.80285976,804.48,802.81,2.8023031]